bitfinex/quotes_ETHUSD_20241231
["timestamp","ask_amount","ask_price","bid_price","bid_amount"]
[1735605780595,1.13172402,3358.3,3358.2,2.97778]
[1735605782748,1.13172402,3358.3,3358.2,3.275558]
[1735605782899,1.13172402,3358.3,3358.2,4.097458]
[1735605783219,3.83e-06,3358.3,3358.2,6.88086623]
[1735605783424,1.23020604,3359.0,3358.9,2.97716]
[1735605783826,1.23020604,3359.2,3358.4,3.0]
[1735605784123,1.23020604,3359.2,3359.0,2.97702]
[1735605784839,1.23020604,3359.2,3358.5,1.28807762]
[1735605785295,1.23020604,3359.2,3358.6,2.97734]
[1735605785621,0.7922,3359.3,3358.6,2.97734]
[1735605786021,0.8169,3359.7,3358.7,0.80316977]
[1735605786423,0.8169,3359.7,3359.3,2.97674]
[1735605786642,0.8169,3359.7,3358.7,0.7734]
[1735605786816,1.23020604,3359.8,3359.7,2.97645]
[1735605787144,1.84786396,3359.8,3359.2,0.7734]
[1735605787435,1.84786396,3359.8,3359.5,2.97663]
[1735605787799,0.06019068,3359.7,3359.5,2.97663]
[1735605788141,1.84786396,3359.8,3359.5,2.97663]
[1735605788508,0.06019068,3359.7,3359.5,2.97663]
[1735605789025,0.06019068,3359.6,3359.5,2.97663]
[1735605789225,0.8169,3360.0,3359.5,3.274293]
[1735605789421,0.06019068,3359.9,3359.8,2.97633]
[1735605790544,0.8169,3360.3,3359.9,2.97626]
[1735605790788,0.8169,3360.3,3359.6,2.97654]
[1735605790916,1.84786396,3360.6,3360.2,2.97601]
[1735605790917,0.8169,3360.6,3360.2,2.97601]
[1735605792941,0.8169,3360.6,3360.4,2.97581]
[1735605793700,0.8169,3361.2,3360.6,2.97563]
[1735605794062,0.8169,3361.2,3360.4,2.97581]
[1735605794264,0.55,3361.1,3360.4,2.97581]
[1735605794542,0.55,3361.1,3360.5,2.97571]
[1735605794843,0.55,3361.1,3360.1,3.74947]
[1735605795039,0.76087307,3361.1,3360.1,3.74947]
[1735605795238,0.55,3361.1,3360.4,2.97577]
[1735605795994,0.33627313,3361.0,3360.5,2.97574]
[1735605796451,0.06019068,3361.0,3360.5,2.97574]
[1735605796871,0.06019068,3361.0,3360.7,2.97556]
[1735605797078,0.06019068,3361.0,3360.3,2.97592]
[1735605797298,0.55,3361.1,3360.7,2.97555]
[1735605797652,0.06148255,3361.0,3360.7,2.97555]
[1735605798057,0.8169,3361.2,3360.8,2.97545]
[1735605798306,0.97220889,3361.5,3360.8,2.97545]
[1735605798624,0.55,3361.4,3360.9,2.97537]
[1735605798794,0.88738084,3361.4,3360.9,2.97537]
[1735605799093,0.33738084,3361.4,3361.3,5.75843823]
[1735605799263,0.33738084,3361.4,3361.3,2.97503]
[1735605799607,0.1679072,3361.7,3361.4,2.97494]
[1735605799813,0.06148255,3361.6,3361.2,2.9751]
[1735605800009,0.1679072,3361.7,3361.2,2.9751]
[1735605800211,0.1679072,3361.7,3361.6,2.97477]
[1735605801809,0.9565072,3361.7,3361.2,0.93870661]
[1735605801981,0.9565072,3361.7,3361.2,2.97511]
[1735605803136,0.06188899,3361.6,3361.2,2.97511]
[1735605803411,0.06188899,3361.6,3361.1,2.97521]
[1735605803586,0.55,3361.6,3360.9,2.97538]
[1735605803781,0.7975554,3361.6,3360.9,2.97538]
[1735605803987,0.55,3361.4,3360.7,2.97556]
[1735605804398,0.55,3361.5,3360.7,2.97556]
[1735605804600,0.7886,3361.2,3360.5,2.97572]
[1735605805087,0.06169662,3361.1,3360.6,2.97562]
[1735605805416,0.55,3361.0,3360.0,2.97616]
[1735605805570,0.55,3360.8,3360.0,2.97616]
[1735605806216,0.7886,3360.5,3359.8,2.97636]
[1735605806406,0.7886,3360.5,3360.2,2.976]
[1735605806601,0.7886,3361.3,3360.4,2.78340823]
[1735605806806,0.7886,3361.3,3360.3,3.80556]
[1735605806807,0.7886,3361.6,3360.7,2.78340823]
[1735605807120,0.7886,3361.6,3361.2,2.97507]
[1735605807428,0.27583642,3361.5,3361.2,2.97507]
[1735605807927,0.7886,3361.6,3360.7,2.78340823]
[1735605808140,0.55,3361.5,3360.7,2.78340823]
[1735605808314,0.60853687,3361.5,3360.8,2.97548]
[1735605808500,0.60853687,3361.5,3360.7,2.78340823]
[1735605808994,0.27606561,3361.4,3361.1,2.9752]
[1735605809215,0.27606561,3361.4,3361.2,2.97505]
[1735605809378,0.7886,3361.6,3361.2,2.97505]
[1735605809582,0.05853687,3361.5,3361.2,2.97505]
[1735605810085,0.1679072,3361.7,3361.2,2.97505]
[1735605810486,0.60853687,3361.6,3361.2,2.97505]
[1735605810686,0.88468535,3361.6,3361.2,2.97505]
[1735605810908,0.82614848,3361.6,3361.2,2.97505]
[1735605811112,0.27614848,3361.5,3361.2,2.97505]
[1735605811983,0.05853687,3361.4,3361.2,2.97505]
[1735605812423,0.27614848,3361.3,3361.2,2.97505]
[1735605812825,0.27614848,3361.5,3361.2,2.97505]
[1735605813421,0.05853687,3361.4,3361.0,2.97527]
[1735605813594,0.27614848,3361.5,3360.4,2.78340823]
[1735605813795,0.27614848,3361.5,3360.7,2.97552]
[1735605813999,0.55,3361.3,3360.8,2.97546]
[1735605814295,0.55,3361.3,3360.9,2.97535]
[1735605814501,0.33468535,3361.2,3360.9,2.97535]
[1735605814904,0.27614848,3361.2,3360.9,2.97535]
[1735605815099,0.27614848,3361.2,3360.3,3.8297]
[1735605815100,0.27614848,3361.2,3360.7,2.78340823]
[1735605815318,0.27614848,3361.2,3360.7,6.03728905]
[1735605815518,0.27614848,3361.2,3360.9,2.97531]
[1735605815719,0.27614848,3361.1,3360.9,2.97531]
[1735605815901,0.27614848,3361.1,3360.7,2.97554]
[1735605816105,0.27614848,3361.1,3361.0,2.9753]
[1735605816414,0.82614848,3361.6,3361.0,2.9753]
[1735605816822,0.33468535,3361.5,3361.0,2.9753]
[1735605817402,0.55,3361.3,3360.7,2.9755]
[1735605817630,0.8025,3361.2,3360.7,2.9755]
[1735605817827,0.8025,3361.2,3360.6,2.97561]
[1735605818035,0.33468535,3361.1,3360.7,2.97557]
[1735605818190,0.27614848,3361.1,3360.9,2.97533]
[1735605818395,0.27614848,3361.1,3361.0,2.9753]
[1735605818627,0.8025,3361.6,3361.0,2.9753]
[1735605818808,0.55,3361.5,3361.0,2.9753]
[1735605819005,0.70204072,3361.5,3361.0,2.9753]
[1735605819208,0.55,3361.3,3361.0,2.9753]
[1735605819730,0.33590067,3361.2,3361.0,2.9753]
[1735605820237,0.2773638,3361.1,3361.0,2.9753]
[1735605826263,0.2773638,3361.1,3361.0,9.54550823]
[1735605826555,0.2773638,3361.1,3361.0,10.80058503]
[1735605827710,3.8e-06,3361.1,3361.0,10.80058503]
[1735605828101,0.1679072,3361.7,3361.0,10.80058503]
[1735605828301,0.1679072,3361.7,3361.6,2.97477]
[1735605832168,0.1679072,3361.7,3361.6,3.79017]
[1735605832461,0.1679072,3361.7,3361.6,4.74799737]
[1735605833252,0.1679072,3361.7,3361.6,3.79017]
[1735605833654,0.1679072,3361.7,3361.6,2.97477]
[1735605834030,0.55,3361.6,3361.0,6.5]
[1735605834383,0.9415072,3361.7,3361.0,6.5]
[1735605834384,0.05826032,3361.5,3361.4,2.97495]
[1735605834868,0.9415072,3361.7,3361.5,2.97486]
[1735605835167,0.55,3361.6,3361.1,2.97521]
[1735605835333,0.55,3361.6,3361.2,2.97511]
[1735605835536,0.55,3361.6,3361.0,2.97526]
[1735605835738,0.55,3361.4,3360.8,2.97545]
[1735605835953,0.55,3361.4,3360.8,2.9754]
[1735605836152,0.05795064,3361.3,3360.9,2.97531]
[1735605836324,0.55,3361.3,3360.9,2.97531]
[1735605836529,0.55,3361.3,3360.7,2.97554]
[1735605836780,0.05795064,3361.2,3360.7,2.97554]
[1735605836943,0.21351228,3361.2,3360.7,2.97554]
[1735605837123,0.15556164,3361.2,3360.7,2.97554]
[1735605837528,0.05795064,3361.1,3360.7,2.97554]
[1735605837826,0.7736,3361.0,3360.7,2.97554]
[1735605838023,0.05795064,3360.9,3360.7,2.97554]
[1735605838242,0.7736,3361.0,3360.7,2.97554]
[1735605838534,0.7736,3361.0,3360.5,2.97571]
[1735605838535,0.05795064,3360.9,3360.5,2.97571]
[1735605838829,0.05795064,3360.9,3360.4,2.97581]
[1735605839973,0.58440468,3360.8,3360.0,0.8154]
[1735605840148,0.7736,3360.7,3360.0,2.97615]
[1735605840341,0.83115136,3360.7,3360.1,2.97609]
[1735605841271,0.83115136,3360.7,3359.7,2.06280429]
[1735605841471,0.83115136,3360.7,3360.2,2.97594]
[1735605842879,0.86555604,3360.7,3360.2,2.97594]
[1735605843179,0.55,3360.6,3360.0,2.97616]
[1735605843736,0.05755136,3360.5,3359.8,2.97632]
[1735605843939,0.05755136,3360.5,3360.1,2.97605]
[1735605844439,0.55,3360.2,3359.6,3.0]
[1735605844634,0.55,3360.2,3359.8,2.97629]
[1735605845892,0.09059278,3360.1,3359.5,2.97654]
[1735605846063,0.7859,3359.9,3359.5,2.97654]
[1735605846262,0.7859,3359.9,3359.5,0.02976445]
[1735605846478,0.7859,3359.9,3359.3,2.97681]
[1735605846668,0.7859,3359.9,3359.7,2.97638]
[1735605847966,0.7859,3359.9,3359.5,2.9766]
[1735605848479,0.55,3359.7,3358.7,4.22469429]
[1735605848779,0.55,3359.5,3358.9,2.97709]
[1735605849484,0.05581612,3359.4,3358.6,2.97743]
[1735605849670,0.05581612,3359.4,3359.1,2.97697]
[1735605849983,0.55,3359.5,3359.1,2.97697]
[1735605850334,0.05581612,3359.4,3359.1,2.97697]
[1735605850780,0.7859,3359.3,3358.8,2.97718]
[1735605851006,0.03440468,3359.2,3358.8,2.97718]
[1735605851214,0.55,3359.2,3358.8,2.97718]
[1735605851341,0.05581612,3359.1,3359.0,2.97707]
[1735605851668,0.7859,3359.3,3359.0,2.97707]
[1735605851976,0.05581612,3359.2,3359.0,2.977]
[1735605852195,0.7859,3359.3,3359.0,2.977]
[1735605852393,0.05581612,3359.1,3359.0,2.977]
[1735605852569,0.7859,3359.3,3359.1,2.97697]
[1735605852958,0.05581612,3359.2,3359.1,2.97697]
[1735605853471,0.7859,3360.1,3359.8,2.97634]
[1735605853666,0.60265558,3360.0,3359.8,2.97634]
[1735605853859,0.60265558,3360.0,3359.1,2.9769]
[1735605854059,0.60265558,3360.0,3359.5,2.97654]
[1735605854982,0.60265558,3360.0,3359.6,2.97651]
[1735605855495,1.04151114,3360.0,3359.6,2.97651]
[1735605855655,1.04151114,3360.0,3359.4,2.97668]
[1735605855994,0.7859,3359.7,3359.2,2.97686]
[1735605856199,0.55,3359.6,3359.2,2.97686]
[1735605856573,0.05265558,3359.5,3359.2,2.97686]
[1735605857184,0.05265558,3359.5,3358.6,0.8063]
[1735605857391,0.05265558,3359.5,3359.3,2.97673]
[1735605857589,0.55,3359.6,3359.3,2.97673]
[1735605857784,0.05265558,3359.4,3359.3,2.97673]
[1735605858101,0.55,3359.6,3359.3,2.97673]
[1735605858603,0.05265558,3359.5,3359.3,2.97673]
[1735605862265,0.05265558,3359.5,3359.1,2.97695]
[1735605863012,0.7512,3359.3,3358.9,2.97712]
[1735605863189,0.7512,3359.3,3358.8,2.97722]
[1735605863395,0.05281422,3359.2,3358.8,2.97722]
[1735605863577,0.05281422,3359.2,3358.6,0.8063]
[1735605863776,0.7512,3359.3,3358.9,2.97716]
[1735605863968,0.7512,3359.3,3359.0,2.97704]
[1735605864169,0.05281422,3359.2,3359.0,2.97704]
[1735605864481,0.7512,3359.3,3359.0,2.97704]
[1735605864683,0.05281422,3359.2,3359.0,2.97704]
[1735605864900,0.7512,3359.3,3359.0,2.97704]
[1735605865285,0.05281422,3359.2,3359.0,2.97704]
[1735605865485,0.7512,3359.3,3359.0,2.97704]
[1735605865667,0.05281422,3359.2,3359.0,2.97704]
[1735605865863,0.7512,3359.3,3359.0,2.97704]
[1735605866071,0.7512,3359.3,3359.2,2.97689]
[1735605866270,3.0,3360.1,3359.3,2.97672]
[1735605866271,0.7512,3360.0,3359.3,2.97672]
[1735605866492,0.94065488,3359.9,3359.3,2.97672]
[1735605866694,0.55,3359.9,3359.3,2.97672]
[1735605866966,0.7512,3360.0,3358.8,2.97725]
[1735605867238,0.7512,3360.0,3359.6,2.97646]
[1735605867814,0.7512,3360.0,3359.2,2.97684]
[1735605868005,0.7512,3360.0,3359.5,2.97662]
[1735605868405,1.40466082,3360.0,3359.5,2.97662]
[1735605869194,0.55,3359.9,3358.9,2.97712]
[1735605869435,0.55,3359.9,3359.4,2.97671]
[1735605870731,1.3012,3359.5,3358.1,0.7874]
[1735605871009,0.7512,3359.4,3358.3,2.97768]
[1735605871163,0.55,3359.3,3358.3,2.97768]
[1735605872175,0.55,3359.1,3358.3,2.97768]
[1735605872680,0.7512,3358.8,3358.3,2.97768]
[1735605872822,0.7512,3358.8,3357.7,7.2874]
[1735605873021,0.55,3358.5,3357.7,6.5]
[1735605873221,3.7512,3358.6,3357.7,6.5]
[1735605873500,1.54187064,3358.5,3357.6,2.9783]
[1735605875486,0.55,3358.5,3357.8,2.97805]
[1735605875818,0.7512,3358.6,3358.1,2.97786]
[1735605876044,0.32390996,3359.6,3358.4,2.97759]
[1735605876045,0.8048,3359.2,3358.4,2.97759]
[1735605877044,0.55,3359.1,3358.4,2.97759]
[1735605877244,1.32916691,3359.1,3358.4,2.97759]
[1735605877447,0.55,3358.9,3357.8,3.0]
[1735605877679,0.55,3358.9,3358.2,2.97777]
[1735605877963,0.08563875,3358.8,3358.2,2.97777]
[1735605878138,0.05123407,3358.8,3358.2,2.97777]
[1735605878537,0.03440468,3358.9,3358.2,2.97777]
[1735605878747,0.05123407,3358.7,3358.2,2.97777]
[1735605878966,0.03440468,3358.9,3358.2,2.97777]
[1735605879151,0.05123407,3358.6,3358.2,2.97777]
[1735605879360,0.8048,3358.6,3358.0,2.97794]
[1735605879677,0.05123407,3358.5,3358.1,2.97787]
[1735605879858,0.05123407,3358.5,3357.6,0.8241]
[1735605880035,0.55,3358.4,3357.6,0.8241]
[1735605880433,0.05123407,3358.3,3357.6,0.8241]
[1735605881631,0.05123407,3358.3,3357.8,3.0]
[1735605883234,0.05123407,3358.3,3357.8,2.97812]
[1735605884360,0.05123407,3358.3,3358.1,2.97785]
[1735605884776,0.8048,3358.6,3358.2,2.97778]
[1735605885138,0.8048,3358.6,3358.0,2.97796]
[1735605886096,0.8048,3358.6,3358.1,2.97787]
[1735605891299,0.83920468,3358.6,3357.6,0.8241]
[1735605891504,0.8048,3358.6,3357.8,2.97805]
[1735605891704,0.8048,3358.6,3357.9,2.97802]
[1735605892643,0.8048,3358.6,3358.0,2.97796]
[1735605893143,0.04948223,3358.5,3358.0,2.97796]
[1735605893444,0.55,3358.2,3357.7,2.97814]
[1735605893599,0.55,3358.2,3357.8,2.97809]
[1735605894001,0.04948223,3358.1,3357.8,2.97809]
[1735605894206,0.55,3358.2,3357.8,2.97809]
[1735605894618,0.04948223,3358.1,3357.8,2.97809]
[1735605894944,0.55,3358.2,3357.8,2.97809]
[1735605895447,0.04948223,3358.1,3357.8,2.97809]
[1735605895941,0.55,3358.2,3357.8,2.97809]
[1735605896451,0.04948223,3358.1,3357.8,2.97809]
[1735605896950,0.55,3358.2,3357.8,2.97809]
[1735605897341,0.04948223,3358.1,3357.8,2.97809]
[1735605897728,0.55,3358.2,3357.8,2.97809]
[1735605898119,0.04948223,3358.1,3357.8,2.97809]
[1735605898557,0.55,3358.2,3357.8,2.97809]
[1735605898915,0.04948223,3358.1,3357.8,2.97809]
[1735605899108,0.55,3358.2,3357.8,2.97809]
[1735605899311,0.04948223,3358.1,3357.8,2.97809]
[1735605899633,0.55,3358.2,3357.8,2.97809]
[1735605899829,0.55,3358.2,3357.6,2.97828]
[1735605900030,0.04948223,3358.1,3357.6,2.97828]
[1735605900235,0.04948223,3358.1,3357.7,2.97821]
[1735605900407,0.04948223,3358.1,3357.1,2.97876]
[1735605900754,0.7737,3358.0,3357.2,3.381036]
[1735605900907,0.7737,3358.0,3357.5,2.97839]
[1735605901115,0.7737,3358.0,3357.2,3.381036]
[1735605901116,0.63388691,3357.9,3357.0,0.8316]
[1735605901347,0.63388691,3357.9,3357.3,2.9785]
[1735605901546,0.59948223,3357.9,3357.3,2.9785]
[1735605901712,0.59948223,3357.9,3357.4,2.97845]
[1735605902113,0.63388691,3357.9,3357.4,2.97845]
[1735605902308,0.59948223,3357.9,3357.4,2.97845]
[1735605903151,0.59948223,3357.9,3357.5,2.97838]
[1735605904649,0.04948223,3357.9,3357.0,0.8316]
[1735605904876,0.04948223,3357.9,3357.8,2.97814]
[1735605905280,0.7931,3358.3,3357.6,0.8079]
[1735605905281,0.03440468,3358.2,3357.6,2.97828]
[1735605905466,0.55,3358.0,3357.4,2.97846]
[1735605905648,0.03440468,3357.9,3357.4,2.97846]
[1735605906086,0.04911609,3357.8,3357.4,2.97846]
[1735605906740,0.7931,3357.6,3357.1,2.97871]
[1735605906941,0.58440468,3357.5,3357.1,2.97871]
[1735605907981,0.04911609,3357.4,3357.1,2.97871]
[1735605908889,0.04911609,3357.4,3356.5,0.8079]
[1735605909056,0.04911609,3357.4,3357.1,2.97867]
[1735605909381,0.04886736,3357.3,3357.1,2.97867]
[1735605909789,0.58440468,3357.5,3357.1,2.97867]
[1735605909989,0.04886736,3357.2,3357.1,2.97867]
[1735605910158,0.58440468,3357.5,3357.1,2.97867]
[1735605910358,0.04886044,3357.2,3357.1,2.97867]
[1735605910554,0.58440468,3357.5,3357.1,2.97867]
[1735605910770,0.04886044,3357.2,3357.1,2.97867]
[1735605910971,0.55,3357.5,3357.1,2.97867]
[1735605911287,0.04886044,3357.2,3357.1,2.97867]
[1735605911493,0.55,3357.5,3357.1,2.97867]
[1735605911648,0.04886044,3357.2,3357.1,2.97867]
[1735605911844,0.55,3357.5,3357.1,2.97867]
[1735605912063,0.04886044,3357.2,3357.1,2.97867]
[1735605912472,0.55,3357.5,3357.1,2.97867]
[1735605912671,0.04886044,3357.2,3357.1,2.97867]
[1735605912871,0.55,3357.5,3357.1,2.97867]
[1735605913367,0.04886044,3357.4,3357.1,2.97867]
[1735605915170,0.04886044,3357.4,3356.5,0.8079]
[1735605915494,0.04886044,3357.4,3356.5,2.136632]
[1735605915700,0.04886044,3357.4,3357.0,2.97877]
[1735605916997,0.04886044,3357.4,3356.5,2.136632]
[1735605917306,0.04886044,3357.4,3357.1,2.97875]
[1735605917655,0.04886044,3357.4,3357.3,2.97858]
[1735605917856,0.04886044,3357.4,3357.3,3.574313]
[1735605918197,1.2402255,3357.7,3357.6,2.97831]
[1735605918400,1.2402255,3357.8,3357.7,2.97822]
[1735605918773,1.2402255,3357.8,3357.7,3.78612]
[1735605918979,1.2402255,3357.8,3357.7,4.462576]
[1735605919173,1.2402255,3357.8,3357.7,3.654676]
[1735605919372,1.2402255,3357.8,3357.7,2.97822]
[1735605920017,0.7816,3358.0,3357.4,2.97844]
[1735605920187,0.7816,3358.0,3357.8,2.97807]
[1735605920392,0.7816,3358.0,3357.3,1.414633]
[1735605920722,0.7816,3358.0,3357.6,2.97828]
[1735605921421,0.7816,3358.0,3357.3,0.595733]
[1735605921422,0.7816,3358.0,3357.7,2.9782]
[1735605921624,0.7816,3358.0,3357.8,2.97813]
[1735605921916,0.7816,3358.0,3357.9,2.97805]
[1735605922874,0.83045351,3358.0,3357.9,2.97805]
[1735605923511,0.04885351,3358.0,3357.9,2.97805]
[1735605924199,0.58440468,3358.1,3357.4,0.7393253]
[1735605924516,0.04885351,3358.0,3357.6,2.97823]
[1735605924917,0.04885351,3358.0,3357.7,2.9782]
[1735605925923,0.04885351,3358.0,3357.8,2.97811]
[1735605926785,0.55,3357.7,3356.9,2.06010429]
[1735605926987,0.55,3357.7,3356.9,1.84328132]
[1735605927197,0.55,3357.5,3356.9,4.84328132]
[1735605927798,0.55,3357.7,3356.9,4.84328132]
[1735605927985,0.7734,3357.8,3357.0,2.97879]
[1735605928204,0.7734,3357.8,3357.0,0.8127]
[1735605928405,2.62126396,3357.8,3357.7,2.97822]
[1735605930039,0.7734,3357.8,3357.7,2.97822]
[1735605930736,2.01690325,3358.1,3357.1,0.59537933]
[1735605931404,2.01690325,3358.1,3357.9,2.978]
[1735605931612,1.24350325,3358.1,3358.0,2.97796]
[1735605932224,1.24350325,3358.3,3358.0,2.97796]
[1735605932596,1.24350325,3358.3,3357.6,0.8127]
[1735605932806,1.24350325,3358.3,3358.2,2.97778]
[1735605933235,1.24350325,3358.3,3358.2,4.386057]
[1735605933435,1.24350325,3358.4,3358.3,2.97769]
[1735605934842,1.24350325,3358.9,3358.3,2.97769]
[1735605935340,1.24350325,3358.9,3358.5,2.97751]
[1735605935640,1.24350325,3358.9,3358.7,2.97729]
[1735605935940,1.24350325,3358.9,3358.5,2.9775]
[1735605936239,0.55,3358.9,3358.5,2.9775]
[1735605936940,0.55,3358.9,3358.6,2.97738]
[1735605937800,0.04550733,3358.8,3358.6,2.97738]
[1735605938014,0.04550733,3358.8,3358.7,2.97734]
[1735605938422,2.01690325,3359.0,3358.7,2.97734]
[1735605938599,0.04550733,3358.8,3358.7,2.97734]
[1735605938800,2.01690325,3359.0,3358.7,2.97734]
[1735605939043,0.04550733,3358.8,3358.7,2.97734]
[1735605939344,0.7734,3359.0,3358.7,2.97734]
[1735605939500,0.04550733,3358.8,3358.7,2.97734]
[1735605939706,0.7734,3359.0,3358.8,2.97723]
[1735605940050,0.04550733,3358.9,3358.8,2.97723]
[1735605940839,0.04550733,3358.9,3358.6,2.9774]
[1735605941038,0.04550733,3358.9,3358.7,2.97732]
[1735605942545,0.04550733,3358.9,3358.8,2.97725]
[1735605945540,0.04550733,3358.9,3358.8,3.274975]
[1735605945937,3.23381862,3359.7,3359.2,3.78979]
[1735605945938,1.24350325,3359.4,3359.2,3.78979]
[1735605946180,1.24350325,3359.4,3359.3,2.97681]
[1735605946942,2.01350325,3359.4,3359.3,2.97681]
[1735605947261,2.64602183,3359.4,3359.1,2.9769]
[1735605947749,1.40251858,3359.4,3358.7,0.8129]
[1735605947956,0.03440468,3359.3,3359.0,2.97705]
[1735605948157,1.40251858,3359.4,3359.0,2.97705]
[1735605948942,1.40251858,3359.4,3358.4,0.8129]
[1735605949114,0.77,3359.4,3359.1,2.97698]
[1735605949958,0.7895,3359.6,3359.5,2.97663]
[1735605950317,0.55,3359.8,3359.6,2.97648]
[1735605951268,2.03300325,3359.9,3359.1,0.7525]
[1735605951557,2.46381862,3360.2,3359.9,2.97621]
[1735605951558,0.7895,3360.2,3359.9,2.97621]
[1735605951863,0.7895,3360.2,3359.3,2.97681]
[1735605952056,0.7895,3360.2,3360.1,2.9761]
[1735605952831,0.83122265,3360.2,3360.1,2.9761]
[1735605953230,1.38122265,3360.2,3360.1,2.9761]
[1735605955049,2.65e-06,3360.2,3360.1,6.80961823]
[1735605955528,1.24350325,3360.9,3360.8,2.97548]
[1735605955929,1.28244456,3360.9,3360.8,2.97548]
[1735605957113,0.03894131,3360.9,3360.8,2.97548]
[1735605957546,0.55,3361.2,3361.1,2.97521]
[1735605959235,0.7895,3361.3,3361.2,2.97512]
[1735605959535,1.3395,3361.3,3361.2,2.97512]
[1735605959737,0.7895,3361.6,3361.5,2.97479]
[1735605960262,0.1679072,3361.7,3361.6,2.97477]
[1735605970834,0.1679072,3361.7,3361.6,3.92333682]
[1735605972373,7.2e-06,3361.7,3361.6,3.92333682]
[1735605972582,7.2e-06,3361.7,3361.6,4.72133682]
[1735605973156,7.2e-06,3361.7,3361.6,7.72133682]
[1735605976441,7.2e-06,3361.7,3361.6,14.22133682]
[1735605976840,0.625,3363.8,3363.4,2.97318]
[1735605976841,0.8067,3363.5,3363.4,2.97318]
[1735605977041,1.4317,3363.8,3363.7,2.97291]
[1735605978098,1.4317,3363.8,3363.5,2.97309]
[1735605978306,1.3817,3363.8,3363.5,2.97309]
[1735605978987,0.55,3363.7,3363.5,2.97309]
[1735605979174,0.55,3363.7,3363.3,2.97324]
[1735605979652,1.3728,3363.4,3362.5,5.78340823]
[1735605980014,0.55,3363.3,3363.1,2.97342]
[1735605981070,0.55,3363.3,3363.0,2.97345]
[1735605981299,0.8228,3363.4,3363.3,2.97327]
[1735605981809,0.8228,3363.4,3363.0,2.97347]
[1735605981810,0.8228,3363.7,3363.6,2.97296]
[1735605982911,0.8228,3363.7,3363.0,2.97345]
[1735605983113,0.8228,3363.7,3363.6,2.973]
[1735605984888,0.575,3363.8,3363.7,2.97291]
[1735605985584,0.575,3363.8,3363.7,3.648299]
[1735605987815,1e-05,3363.8,3363.7,6.43170723]
[1735605988016,1e-05,3363.8,3363.7,7.23950723]
[1735605988740,1e-05,3363.8,3363.7,2.97291]
[1735605988902,1e-05,3363.8,3363.2,9.47335]
[1735605989108,1e-05,3363.8,3363.7,2.97291]
[1735605989687,1e-05,3363.8,3363.5,2.97307]
[1735605990133,1e-05,3363.8,3362.8,3.59120823]
[1735605990318,1e-05,3363.8,3362.9,2.97362]
[1735605990640,0.55,3363.4,3362.5,3.78175]
[1735605990931,0.55,3363.4,3363.0,2.97353]
[1735605990932,0.03990752,3363.3,3363.0,2.97353]
[1735605991160,0.03990752,3363.3,3363.1,2.97343]
[1735605991369,0.03990752,3363.3,3363.2,2.97335]
[1735605991512,0.03990752,3363.3,3362.9,2.97355]
[1735605991712,0.55,3363.4,3362.9,2.97355]
[1735605992025,0.8228,3363.1,3362.8,2.97365]
[1735605992224,0.8228,3363.1,3362.2,3.59120823]
[1735605992225,0.8228,3363.1,3362.9,2.9736]
[1735605993928,0.8228,3363.4,3362.6,0.8078]
[1735605994126,0.55,3363.3,3362.9,2.97355]
[1735605994452,0.58952665,3363.3,3362.9,2.97355]
[1735605995251,0.58952665,3363.3,3362.6,1.485986]
[1735605995252,0.03952665,3363.3,3363.2,2.97335]
[1735605995726,0.8228,3363.4,3363.3,2.97327]
[1735605996043,0.8228,3363.4,3363.1,2.97344]
[1735605996368,0.03943661,3363.3,3363.1,2.97344]
[1735605996835,0.03943661,3363.3,3362.8,2.97363]
[1735605997643,0.62384129,3363.3,3362.3,0.794]
[1735605997843,0.8161,3363.2,3362.5,2.97389]
[1735605998054,0.8161,3362.9,3361.7,0.794]
[1735605998326,0.55,3362.6,3362.0,2.97436]
[1735605998966,0.8161,3362.4,3361.8,2.97458]
[1735605999164,0.8161,3362.4,3361.9,2.97446]
[1735605999471,0.8161,3362.4,3361.4,0.794]
[1735605999655,0.58877169,3362.3,3361.2,2.97506]
[1735605999858,0.55,3362.3,3361.9,3.0]
[1735606000166,0.03877169,3362.2,3361.8,2.97458]
[1735606000325,0.03877169,3362.2,3361.6,2.97475]
[1735606000531,0.8161,3362.1,3361.6,2.97475]
[1735606000727,0.85455295,3362.1,3360.8,0.794]
[1735606000932,0.85455295,3362.1,3361.7,2.97466]
[1735606001132,0.8161,3362.1,3361.7,2.97466]
[1735606001570,0.03440468,3362.0,3361.3,3.0]
[1735606001874,0.03845295,3361.9,3361.1,3.0]
[1735606002026,0.8161,3362.1,3361.7,2.97468]
[1735606002875,0.03845295,3362.0,3361.7,2.97468]
[1735606004203,0.03845295,3362.0,3361.5,2.97484]
[1735606004487,0.8161,3362.1,3361.5,2.97484]
[1735606004690,0.03820344,3361.9,3361.5,2.97484]
[1735606004833,0.55,3362.0,3361.6,2.97469]
[1735606005034,0.03820344,3361.9,3361.6,2.97469]
[1735606005598,0.8161,3362.1,3361.6,2.97469]
[1735606005805,0.03820344,3361.8,3361.6,2.97469]
[1735606006012,0.58440468,3362.0,3361.3,2.97502]
[1735606006367,0.03820344,3361.9,3361.4,2.97494]
[1735606006719,0.03820344,3361.9,3361.3,2.97499]
[1735606006843,0.03820344,3361.9,3361.4,2.97491]
[1735606007654,0.07260812,3361.9,3361.4,2.97491]
[1735606008255,0.03820344,3361.9,3361.5,2.97485]
[1735606008450,0.03820344,3361.9,3361.1,2.97514]
[1735606008451,0.03820344,3361.9,3361.2,2.9751]
[1735606008687,0.07260812,3361.9,3361.2,2.9751]
[1735606008853,0.07260812,3361.9,3360.9,0.65528882]
[1735606009046,0.03820344,3361.9,3361.3,2.97496]
[1735606009665,0.03820344,3361.9,3361.0,3.69851971]
[1735606009958,0.03820344,3361.9,3361.4,2.97493]
[1735606011054,0.03820344,3361.9,3361.0,0.72326971]